[Event "WJCC U20 Girls 2019"]
[Site "New Delhi"]
[Date "2019.10.17"]
[Round "4.36"]
[White "Ghosh Samriddhaa"]
[Black "Jain Nityata"]
[Result "1-0"]
[ECO "B19"]
[WhiteElo "1867"]
[BlackElo "2029"]
[Annotator "NA"]
[PlyCount "62"]
[EventDate "2019.10.15"]
[EventType "swiss"]
[EventCountry "IND"]
[SourceTitle "playchess.com"]
[Source "ChessBase"]
[SourceQuality "1"]
[TimeControl "40/5400+30:1800+30"]

1. e4 {[%emt 0:00:00]} c6 {[%emt 0:00:00]} 2. d4 {[%emt 0:00:00]} d5 {[%emt 0:00:00]} 3. Nd2 {[%emt 0:00:46]} dxe4 {[%emt 0:00:00]} 4. Nxe4 {[%emt 0:00:05]} Bf5 {[%emt 0:00:00]} 5. Ng3 {[%emt 0:00:07]} Bg6 {[%emt 0:00:00]} 6. h4 {[%emt 0:00:18]} h6 {[%emt 0:00:02]} 7. Nf3 {[%emt 0:00:14]} Nd7 {[%emt 0:00:14]} 8. h5 {[%emt 0:00:16]} Bh7 {[%emt 0:00:05]} 9. Bd3 {[%emt 0:00:19]} Bxd3 {[%emt 0:00:08]} 10. Qxd3 {[%emt 0:00:04]} e6 {[%emt 0:00:07]} 11. Bd2 {[%emt 0:00:34]} Ngf6 {[%emt 0:00:11]} 12. O-O-O {[%emt 0:00:48]} Be7 {[%emt 0:00:31]} 13. Kb1 {[%emt 0:04:08]} O-O {[%emt 0:00:39]} 14. Ne4 {[%emt 0:01:31]} Nxe4 {[%emt 0:00:07]} 15. Qxe4 {[%emt 0:00:05]} Nf6 {[%emt 0:00:03]} 16. Qe2 {[%emt 0:00:37]} Qd5 {[%emt 0:00:23]} 17. Ne5 {[%emt 0:11:07]} c5 {[%emt 0:03:34]} 18. dxc5 {[%emt 0:11:24]} Qxc5 {[%emt 0:03:48]} 19. g4 {[%emt 0:04:55]} Rac8 {[%emt 0:04:48]} 20. Bc1 {[%emt 0:04:55]} Rfd8 {[%emt 0:44:20]} 21. g5 {[%emt 0:10:45]} hxg5 {[%emt 0:02:16]} 22. Bxg5 {[%emt 0:02:33]} Qb4 {[%emt 0:13:42]} 23. h6 {[%emt 0:10:00]} Rxd1+ {[%emt 0:19:37]} 24. Qxd1 {[%emt 0:25:49]} g6 {[%emt 0:06:34]} 25. Qf3 {[%emt 0:04:28]} Qc5 {[%emt 0:00:42]} 26. h7+ {[%emt 0:00:49]} Kg7 {[%emt 0:00:16]} 27. Bh6+ {[%emt 0:00:48]} Kh8 {[%emt 0:00:47]} 28. Nxf7+ {[%emt 0:00:14]} Kxh7 {[%emt 0:00:08]} 29. Be3+ {[%emt 0:00:16]} Qh5 {[%emt 0:00:55]} 30. Rxh5+ {[%emt 0:00:08]} Nxh5 {[%emt 0:00:17]} 31. Qxb7 {[%emt 0:00:50]} Bf8 {[%emt 0:00:00]} 1-0

[Event "WJCC U20 Girls 2019"]
[Site "New Delhi"]
[Date "2019.10.17"]
[Round "4.37"]
[White "Noshin, Anjum"]
[Black "Cosme Contreras, Trilce"]
[Result "1/2-1/2"]
[ECO "B90"]
[WhiteElo "1793"]
[BlackElo "2027"]
[Annotator "NA"]
[PlyCount "62"]
[EventDate "2019.10.15"]
[EventType "swiss"]
[EventCountry "IND"]
[SourceTitle "playchess.com"]
[Source "ChessBase"]
[SourceQuality "1"]
[TimeControl "40/5400+30:1800+30"]

1. e4 {[%emt 0:00:00]} c5 {[%emt 0:00:00]} 2. Nf3 {[%emt 0:00:00]} d6 {[%emt 0:00:00]} 3. d4 {[%emt 0:00:15]} cxd4 {[%emt 0:00:00]} 4. Nxd4 {[%emt 0:00:15]} Nf6 {[%emt 0:00:00]} 5. Nc3 {[%emt 0:00:13]} a6 {[%emt 0:00:11]} 6. f3 {[%emt 0:00:46]} e6 {[%emt 0:00:18]} 7. Be3 {[%emt 0:00:35]} Be7 {[%emt 0:02:41]} 8. Qd2 {[%emt 0:00:54]} b5 {[%emt 0:00:27]} 9. O-O-O {[%emt 0:06:07]} Bb7 {[%emt 0:00:50]} 10. g4 {[%emt 0:05:52]} Nc6 {[%emt 0:02:04]} 11. Nxc6 {[%emt 0:06:48]} Bxc6 {[%emt 0:00:19]} 12. Kb1 {[%emt 0:01:57]} Rc8 {[%emt 0:03:20]} 13. a3 {[%emt 0:04:37]} Qc7 {[%emt 0:00:31]} 14. Bf4 {[%emt 0:03:54]} e5 {[%emt 0:00:15]} 15. Be3 {[%emt 0:01:52]} Nd7 {[%emt 0:06:21]} 16. Nd5 {[%emt 0:03:28]} Bxd5 {[%emt 0:00:09]} 17. exd5 {[%emt 0:00:10]} Nb6 {[%emt 0:04:50]} 18. Qf2 {[%emt 0:03:54]} Rb8 {[%emt 0:11:19]} 19. f4 {[%emt 0:05:13]} Nc4 {[%emt 0:01:38]} 20. Bc1 {[%emt 0:06:13]} O-O {[%emt 0:05:00]} 21. Bd3 {[%emt 0:07:05]} exf4 {[%emt 0:07:12]} 22. Qxf4 {[%emt 0:01:28]} Ne5 {[%emt 0:02:51]} 23. Be2 {[%emt 0:03:30]} Rfc8 {[%emt 0:02:45]} 24. Qe4 {[%emt 0:01:53]} a5 {[%emt 0:07:25]} 25. Rhg1 {[%emt 0:03:33]} Qd7 {[%emt 0:02:02]} 26. Rg3 {[%emt 0:01:58]} b4 {[%emt 0:00:59]} 27. Rh3 {[%emt 0:03:48]} g6 {[%emt 0:00:12]} 28. Bd2 {[%emt 0:02:34]} bxa3 {[%emt 0:19:20]} 29. Rxa3 {[%emt 0:03:11]} Qb7 {[%emt 0:08:27]} 30. Rb3 {[%emt 0:03:44]} Qa7 {[%emt 0:03:54]} 31. Ra3 {[%emt 0:01:44]} Qb7 {[%emt 0:00:07]} 1/2-1/2

[Event "WJCC U20 Girls 2019"]
[Site "New Delhi"]
[Date "2019.10.17"]
[Round "4.38"]
[White "Srimathi R"]
[Black "Abdala Cancino, Patricia Anastas"]
[Result "1-0"]
[ECO "C55"]
[WhiteElo "1914"]
[BlackElo "1608"]
[Annotator "NA RC"]
[PlyCount "55"]
[EventDate "2019.10.15"]
[EventType "swiss"]
[EventCountry "IND"]
[SourceTitle "playchess.com"]
[Source "ChessBase"]
[SourceQuality "1"]
[TimeControl "40/5400+30:1800+30"]

1. e4 {[%emt 0:00:08]} e5 {[%emt 0:00:00]} 2. Nf3 {[%emt 0:00:10]} Nc6 {[%emt 0:00:00]} 3. d4 {[%emt 0:00:13]} exd4 {[%emt 0:00:05]} 4. Bc4 {[%emt 0:00:03]} Nf6 {[%emt 0:00:46]} 5. e5 {[%emt 0:00:05]} d5 {[%emt 0:00:05]} 6. Bb5 {[%emt 0:00:05]} Ne4 {[%emt 0:00:11]} 7. Nxd4 {[%emt 0:00:23]} Bd7 {[%emt 0:00:24]} 8. Bxc6 {[%emt 0:00:10]} bxc6 {[%emt 0:00:08]} 9. O-O {[%emt 0:00:05]} Bc5 {[%emt 0:01:49]} 10. f3 {[%emt 0:00:56]} Ng5 {[%emt 0:00:19]} 11. f4 {[%emt 0:00:08]} Ne4 {[%emt 0:01:54]} 12. Be3 {[%emt 0:00:31]} Bb6 {[%emt 0:00:13]} 13. Nc3 {[%emt 0:04:30]} Nxc3 {[%emt 0:00:56]} 14. bxc3 {[%emt 0:00:06]} O-O {[%emt 0:00:09]} 15. Qe2 {[%emt 0:05:59]} Qe7 {[%emt 0:00:31]} 16. Nf3 {[%emt 0:13:21]} Rae8 {[%emt 0:06:25]} 17. Kh1 {[%emt 0:02:43]} h6 {[%emt 0:02:32]} 18. Rae1 {[%emt 0:04:23]} Bg4 {[%emt 0:02:35]} 19. Qd3 {[%emt 0:05:42]} f6 {[%emt 0:03:30]} 20. Nh4 {[%emt 0:07:33]} Bh5 {[%emt 0:02:20]} 21. Bxb6 {[%emt 0:04:58]} cxb6 {[%emt 0:00:38]} 22. e6 {[%emt 0:02:14]} Rd8 {[%emt 0:00:53]} 23. Nf5 {[%emt 0:00:19]} Qc5 {[%emt 0:01:04]} 24. e7 {[%emt 0:01:09]} Bg6 {[%emt 0:00:41]} 25. exd8=Q Rxd8 {[%emt 0:00:24]} 26. Ne7+ {[%emt 0:01:27]} Qxe7 {[%emt 0:00:15]} 27. Rxe7 {[%emt 0:00:05]} Bxd3 {[%emt 0:00:08]} 28. cxd3 {[%emt 0:00:02]} 1-0

[Event "WJCC U20 Girls 2019"]
[Site "New Delhi"]
[Date "2019.10.17"]
[Round "4.39"]
[White "Mungunzul, Bat-Erdene"]
[Black "Djuric, Anja"]
[Result "1-0"]
[ECO "E92"]
[WhiteElo "1912"]
[BlackElo "1493"]
[Annotator "NA"]
[PlyCount "121"]
[EventDate "2019.10.15"]
[EventType "swiss"]
[EventCountry "IND"]
[SourceTitle "playchess.com"]
[Source "ChessBase"]
[SourceQuality "1"]
[TimeControl "40/5400+30:1800+30"]

1. d4 {[%emt 0:00:00]} Nf6 {[%emt 0:00:00]} 2. c4 {[%emt 0:00:00]} g6 {[%emt 0:00:10]} 3. Nc3 {[%emt 0:00:00]} Bg7 {[%emt 0:00:26]} 4. e4 {[%emt 0:00:04]} d6 {[%emt 0:00:05]} 5. Nf3 {[%emt 0:00:11]} O-O {[%emt 0:00:33]} 6. Be2 {[%emt 0:00:11]} e5 {[%emt 0:00:48]} 7. Be3 {[%emt 0:00:23]} Nbd7 {[%emt 0:02:05]} 8. d5 {[%emt 0:00:21]} Qe7 {[%emt 0:03:15]} 9. Nd2 {[%emt 0:02:28]} c6 {[%emt 0:03:40]} 10. dxc6 {[%emt 0:00:38]} bxc6 {[%emt 0:00:13]} 11. Nb3 {[%emt 0:00:32]} a5 {[%emt 0:02:44]} 12. Qd3 {[%emt 0:08:17]} a4 {[%emt 0:04:24]} 13. Nd2 {[%emt 0:00:33]} Rd8 {[%emt 0:02:12]} 14. O-O {[%emt 0:02:08]} Bb7 {[%emt 0:08:38]} 15. Rfd1 {[%emt 0:04:31]} Nf8 {[%emt 0:19:36]} 16. Bf3 {[%emt 0:13:16]} Ne6 {[%emt 0:03:20]} 17. Qc2 {[%emt 0:03:23]} a3 {[%emt 0:01:51]} 18. Nb3 {[%emt 0:01:15]} axb2 {[%emt 0:04:05]} 19. Qxb2 {[%emt 0:01:51]} c5 {[%emt 0:01:50]} 20. Rdb1 {[%emt 0:04:53]} Rdb8 {[%emt 0:02:20]} 21. Nd2 {[%emt 0:04:29]} Qd8 {[%emt 0:03:05]} 22. Qc1 {[%emt 0:04:42]} Nd4 {[%emt 0:01:24]} 23. Bd1 {[%emt 0:01:03]} Bc6 {[%emt 0:05:00]} 24. a4 {[%emt 0:10:08]} Qa5 {[%emt 0:01:44]} 25. Rxb8+ {[%emt 0:04:21]} Rxb8 {[%emt 0:00:09]} 26. f3 {[%emt 0:00:49]} Nh5 {[%emt 0:02:38]} 27. Nb5 Bxb5 {[%emt 0:00:59]} 28. cxb5 {[%emt 0:13:31]} Nf4 {[%emt 0:01:04]} 29. Kf1 {[%emt 0:01:09]} Nd3 {[%emt 0:02:53]} 30. Qa3 {[%emt 0:05:33]} Nb4 {[%emt 0:00:43]} 31. Qc3 {[%emt 0:00:47]} Qc7 {[%emt 0:06:22]} 32. Rb1 {[%emt 0:01:04]} Qa7 {[%emt 0:02:41]} 33. Qc4 {[%emt 0:00:57]} Kh8 {[%emt 0:01:20]} 34. Nb3 {[%emt 0:03:53]} f5 {[%emt 0:02:26]} 35. Kg1 {[%emt 0:02:17]} fxe4 {[%emt 0:01:49]} 36. fxe4 {[%emt 0:00:06]} Qa8 {[%emt 0:03:03]} 37. Nd2 {[%emt 0:00:38]} Qa7 {[%emt 0:01:00]} 38. Nf1 {[%emt 0:02:26]} h5 {[%emt 0:03:11]} 39. Rb2 {[%emt 0:01:13]} Qa8 {[%emt 0:00:54]} 40. Nd2 {[%emt 0:00:46]} Qa7 {[%emt 0:00:44]} 41. Nf3 {[%emt 0:31:37]} Qb7 {[%emt 0:31:04]} 42. Ng5 {[%emt 0:02:43]} Rf8 {[%emt 0:02:23]} 43. Rf2 {[%emt 0:01:31]} Bf6 {[%emt 0:00:17]} 44. Qf1 {[%emt 0:00:00]} Qe7 {[%emt 0:00:00]} 45. Nh3 {[%emt 0:00:00]} Kg7 {[%emt 0:00:00]} 46. g4 {[%emt 0:00:00]} hxg4 {[%emt 0:00:00]} 47. Bxg4 {[%emt 0:00:00]} Ra8 {[%emt 0:00:00]} 48. Rg2 {[%emt 0:00:00]} Kh7 {[%emt 0:00:00]} 49. Bd1 {[%emt 0:00:00]} Ne6 {[%emt 0:00:00]} 50. Qf3 {[%emt 0:00:00]} Rh8 {[%emt 0:00:00]} 51. Qg4 {[%emt 0:00:00]} Qf7 {[%emt 0:00:00]} 52. Bb3 {[%emt 0:00:00]} Re8 {[%emt 0:00:00]} 53. Bg5 {[%emt 0:00:00]} Kg7 {[%emt 0:00:00]} 54. Rf2 {[%emt 0:00:00]} d5 {[%emt 0:00:00]} 55. Bxf6+ {[%emt 0:00:00]} Kg8 {[%emt 0:00:00]} 56. Qh4 {[%emt 0:00:00]} Qh7 {[%emt 0:00:00]} 57. Qxh7+ Kxh7 {[%emt 0:00:00]} 58. Bxd5 {[%emt 0:00:00]} Nd4 {[%emt 0:00:00]} 59. Ng5+ {[%emt 0:00:00]} Kh6 {[%emt 0:00:00]} 60. Nf7+ {[%emt 0:00:00]} Kh5 {[%emt 0:00:00]} 61. Bxe5 {[%emt 0:00:00]} 1-0

[Event "WJCC U20 Girls 2019"]
[Site "New Delhi"]
[Date "2019.10.17"]
[Round "4.40"]
[White "Di Benedetto, Desiree"]
[Black "Rindhiya V"]
[Result "0-1"]
[ECO "A25"]
[WhiteElo "2235"]
[BlackElo "1817"]
[Annotator "NA"]
[PlyCount "102"]
[EventDate "2019.10.15"]
[EventType "swiss"]
[EventCountry "IND"]
[SourceTitle "playchess.com"]
[Source "ChessBase"]
[SourceQuality "1"]
[TimeControl "40/5400+30:1800+30"]

1. c4 {[%emt 0:00:00]} e5 {[%emt 0:00:00]} 2. Nc3 {[%emt 0:00:29]} Nc6 {[%emt 0:00:00]} 3. g3 {[%emt 0:00:22]} g6 {[%emt 0:00:01]} 4. Bg2 {[%emt 0:00:12]} Bg7 {[%emt 0:00:08]} 5. Nf3 {[%emt 0:01:29]} d6 {[%emt 0:00:11]} 6. O-O {[%emt 0:01:51]} Nge7 {[%emt 0:00:19]} 7. d3 {[%emt 0:02:56]} O-O {[%emt 0:00:21]} 8. Bd2 {[%emt 0:01:15]} Bd7 {[%emt 0:03:17]} 9. Rb1 {[%emt 0:01:40]} Qc8 {[%emt 0:18:59]} 10. b4 {[%emt 0:01:08]} Bh3 {[%emt 0:01:22]} 11. e3 {[%emt 0:03:24]} Bxg2 {[%emt 0:00:08]} 12. Kxg2 {[%emt 0:00:03]} f5 {[%emt 0:05:25]} 13. b5 {[%emt 0:04:36]} Nd8 {[%emt 0:00:08]} 14. Nd5 {[%emt 0:07:25]} Qd7 {[%emt 0:02:17]} 15. Qb3 {[%emt 0:02:58]} Ne6 {[%emt 0:10:33]} 16. c5 {[%emt 0:05:56]} Kh8 {[%emt 0:04:34]} 17. Nxe7 {[%emt 0:08:31]} Qxe7 {[%emt 0:00:02]} 18. cxd6 {[%emt 0:00:27]} cxd6 {[%emt 0:00:21]} 19. Qd5 {[%emt 0:05:38]} e4 {[%emt 0:22:21]} 20. dxe4 {[%emt 0:08:38]} fxe4 {[%emt 0:00:02]} 21. Qxe4 {[%emt 0:02:53]} Nf4+ {[%emt 0:01:01]} 22. Qxf4 {[%emt 0:00:06]} Rxf4 {[%emt 0:00:07]} 23. exf4 {[%emt 0:00:26]} d5 {[%emt 0:08:56]} 24. Rfe1 {[%emt 0:06:04]} Qd7 {[%emt 0:00:50]} 25. Bb4 {[%emt 0:08:43]} Re8 {[%emt 0:12:57]} 26. Rxe8+ {[%emt 0:08:43]} Qxe8 {[%emt 0:00:03]} 27. Rc1 {[%emt 0:04:37]} h6 {[%emt 0:01:09]} 28. a4 {[%emt 0:00:54]} Qe4 {[%emt 0:01:17]} 29. Bd6 {[%emt 0:01:38]} Qxa4 {[%emt 0:06:40]} 30. Rc8+ {[%emt 0:00:15]} Kh7 {[%emt 0:00:02]} 31. Rc7 {[%emt 0:00:18]} Kg8 {[%emt 0:00:03]} 32. Rxb7 {[%emt 0:00:34]} d4 {[%emt 0:00:05]} 33. Bc5 {[%emt 0:02:47]} Qc4 {[%emt 0:01:48]} 34. Bxa7 {[%emt 0:01:30]} Qd5 {[%emt 0:00:49]} 35. Rb8+ {[%emt 0:07:26]} Kh7 {[%emt 0:00:02]} 36. h4 {[%emt 0:01:30]} Bf6 {[%emt 0:01:05]} 37. Rb6 {[%emt 0:00:35]} d3 {[%emt 0:00:33]} 38. Rxf6 {[%emt 0:00:27]} d2 {[%emt 0:00:01]} 39. f5 {[%emt 0:00:18]} g5 {[%emt 0:00:58]} 40. hxg5 {[%emt 0:00:25]} hxg5 {[%emt 0:00:29]} 41. Rd6 {[%emt 0:04:25]} d1=Q {[%emt 0:01:47]} 42. Rxd5 {[%emt 0:00:15]} Qxd5 {[%emt 0:00:03]} 43. g4 {[%emt 0:00:34]} Qe4 {[%emt 0:01:18]} 44. Bb8 {[%emt 0:00:43]} Qxg4+ {[%emt 0:00:05]} 45. Bg3 {[%emt 0:00:07]} Qe4 {[%emt 0:00:16]} 46. Kh2 {[%emt 0:03:52]} Qxf3 {[%emt 0:00:08]} 47. b6 {[%emt 0:00:14]} Qc6 {[%emt 0:00:38]} 48. Bc7 {[%emt 0:01:42]} Kg7 {[%emt 0:01:36]} 49. Be5+ {[%emt 0:01:49]} Kf7 {[%emt 0:00:02]} 50. Bd4 {[%emt 0:00:29]} Qe4 {[%emt 0:00:32]} 51. Be3 {[%emt 0:00:14]} Kf6 {[%emt 0:00:06]} 0-1

[Event "WJCC U20 Girls 2019"]
[Site "New Delhi"]
[Date "2019.10.17"]
[Round "4.41"]
[White "Harshini A"]
[Black "Shivika Rohilla"]
[Result "1-0"]
[ECO "C91"]
[WhiteElo "2230"]
[BlackElo "1721"]
[Annotator "NA"]
[PlyCount "77"]
[EventDate "2019.10.15"]
[EventType "swiss"]
[EventCountry "IND"]
[SourceTitle "playchess.com"]
[Source "ChessBase"]
[SourceQuality "1"]
[TimeControl "40/5400+30:1800+30"]

1. e4 {[%emt 0:00:00]} e5 {[%emt 0:00:00]} 2. Nf3 {[%emt 0:00:00]} Nc6 {[%emt 0:00:00]} 3. Bb5 {[%emt 0:00:00]} a6 {[%emt 0:00:00]} 4. Ba4 {[%emt 0:00:00]} Nf6 {[%emt 0:00:00]} 5. O-O {[%emt 0:00:00]} b5 {[%emt 0:00:07]} 6. Bb3 {[%emt 0:00:00]} Be7 {[%emt 0:00:06]} 7. Re1 {[%emt 0:00:00]} d6 {[%emt 0:00:06]} 8. c3 {[%emt 0:00:04]} O-O {[%emt 0:00:06]} 9. d4 {[%emt 0:00:03]} exd4 {[%emt 0:02:25]} 10. Nxd4 {[%emt 0:00:25]} Nxd4 {[%emt 0:02:38]} 11. cxd4 {[%emt 0:00:28]} c5 {[%emt 0:02:50]} 12. Nc3 {[%emt 0:01:26]} Bb7 {[%emt 0:04:13]} 13. f3 {[%emt 0:01:00]} Qc7 {[%emt 0:20:35]} 14. Bf4 {[%emt 0:03:54]} Nh5 {[%emt 0:00:55]} 15. Be3 {[%emt 0:00:06]} c4 {[%emt 0:00:45]} 16. Bc2 {[%emt 0:00:06]} g6 {[%emt 0:01:26]} 17. Bh6 {[%emt 0:01:46]} Rfe8 {[%emt 0:00:34]} 18. Qd2 {[%emt 0:00:05]} Bf6 {[%emt 0:04:50]} 19. f4 {[%emt 0:04:04]} Qb6 {[%emt 0:03:42]} 20. Rad1 {[%emt 0:01:19]} Bh8 {[%emt 0:10:57]} 21. f5 {[%emt 0:05:10]} Nf6 {[%emt 0:03:43]} 22. Qf4 {[%emt 0:08:46]} Nh5 {[%emt 0:01:15]} 23. Qf2 {[%emt 0:15:26]} Nf6 {[%emt 0:04:40]} 24. h3 {[%emt 0:13:36]} b4 {[%emt 0:01:04]} 25. Na4 {[%emt 0:00:39]} Qc7 {[%emt 0:00:11]} 26. Qf4 {[%emt 0:05:40]} Nh5 {[%emt 0:02:06]} 27. Qf3 {[%emt 0:00:11]} Bg7 {[%emt 0:01:54]} 28. Bg5 {[%emt 0:01:37]} h6 {[%emt 0:08:13]} 29. Bh4 {[%emt 0:00:28]} Kh8 {[%emt 0:04:04]} 30. f6 {[%emt 0:02:45]} Bf8 {[%emt 0:00:09]} 31. g4 {[%emt 0:00:10]} g5 {[%emt 0:00:18]} 32. gxh5 {[%emt 0:02:33]} gxh4 {[%emt 0:00:08]} 33. Rd2 {[%emt 0:02:25]} d5 {[%emt 0:01:02]} 34. e5 {[%emt 0:00:19]} b3 {[%emt 0:00:43]} 35. Rg2 {[%emt 0:02:25]} Bc8 {[%emt 0:02:15]} 36. axb3 {[%emt 0:02:44]} cxb3 {[%emt 0:00:11]} 37. Bxb3 {[%emt 0:04:04]} Be6 {[%emt 0:01:31]} 38. Kh2 {[%emt 0:01:32]} Bb4 {[%emt 0:00:50]} 39. Qe3 {[%emt 0:00:23]} 1-0

[Event "WJCC U20 Girls 2019"]
[Site "New Delhi"]
[Date "2019.10.17"]
[Round "4.42"]
[White "Dahampriya, H K T Dewnethmie"]
[Black "Tamarozi, Isabelle"]
[Result "1-0"]
[ECO "B27"]
[WhiteElo "1629"]
[BlackElo "2029"]
[Annotator "NA"]
[PlyCount "73"]
[EventDate "2019.10.15"]
[EventType "swiss"]
[EventCountry "IND"]
[SourceTitle "playchess.com"]
[Source "ChessBase"]
[SourceQuality "1"]
[TimeControl "40/5400+30:1800+30"]

1. e4 {[%emt 0:00:00]} c5 {[%emt 0:00:00]} 2. Nf3 {[%emt 0:00:00]} g6 {[%emt 0:00:36]} 3. e5 {[%emt 0:00:18]} Nf6 {[%emt 0:01:23]} 4. d4 {[%emt 0:03:37]} Nd5 {[%emt 0:00:56]} 5. dxc5 {[%emt 0:00:30]} Bg7 {[%emt 0:01:15]} 6. Bc4 {[%emt 0:02:41]} Nb6 {[%emt 0:01:33]} 7. Bb3 {[%emt 0:00:10]} d5 {[%emt 0:04:51]} 8. O-O {[%emt 0:02:08]} Bg4 {[%emt 0:03:47]} 9. h3 {[%emt 0:00:11]} Bxf3 {[%emt 0:02:47]} 10. Qxf3 {[%emt 0:00:13]} O-O {[%emt 0:02:51]} 11. Nc3 {[%emt 0:01:49]} Nc6 {[%emt 0:04:11]} 12. Be3 {[%emt 0:03:01]} e6 {[%emt 0:01:47]} 13. Qe2 {[%emt 0:00:26]} h6 {[%emt 0:08:29]} 14. f4 {[%emt 0:01:40]} Ne7 {[%emt 0:05:34]} 15. g4 {[%emt 0:00:42]} Qd7 {[%emt 0:03:14]} 16. a4 {[%emt 0:02:11]} Rac8 {[%emt 0:03:47]} 17. Nb5 {[%emt 0:03:24]} a6 {[%emt 0:02:41]} 18. Nd6 {[%emt 0:00:23]} Rc7 {[%emt 0:00:54]} 19. Bd2 {[%emt 0:03:43]} Nc6 {[%emt 0:06:32]} 20. Qd3 {[%emt 0:01:40]} f5 {[%emt 0:13:02]} 21. gxf5 {[%emt 0:02:05]} gxf5 {[%emt 0:01:41]} 22. Kh2 {[%emt 0:00:16]} Rd8 {[%emt 0:08:06]} 23. Rg1 {[%emt 0:01:22]} Nc4 {[%emt 0:01:53]} 24. Bxc4 {[%emt 0:20:43]} dxc4 {[%emt 0:00:35]} 25. Qe3 {[%emt 0:08:39]} Kh8 {[%emt 0:06:41]} 26. Bc3 {[%emt 0:00:24]} Rf8 {[%emt 0:03:46]} 27. Nxc4 {[%emt 0:02:21]} Nd4 {[%emt 0:03:23]} 28. Nb6 {[%emt 0:00:35]} Nxc2 {[%emt 0:01:44]} 29. Nxd7 {[%emt 0:06:17]} Nxe3 {[%emt 0:00:09]} 30. Nxf8 {[%emt 0:00:05]} Bxf8 {[%emt 0:00:16]} 31. Rg6 {[%emt 0:03:01]} Nd5 {[%emt 0:01:12]} 32. Rxe6 {[%emt 0:01:10]} Nxf4 {[%emt 0:02:11]} 33. Rf6 {[%emt 0:05:33]} Bg7 {[%emt 0:01:40]} 34. Rxf5 {[%emt 0:00:23]} Nd3 {[%emt 0:01:08]} 35. e6 {[%emt 0:05:38]} Bxc3 {[%emt 0:00:25]} 36. bxc3 {[%emt 0:00:17]} Re7 {[%emt 0:00:53]} 37. Rd1 {[%emt 0:03:20]} 1-0

[Event "WJCC U20 Girls 2019"]
[Site "New Delhi"]
[Date "2019.10.17"]
[Round "4.43"]
[White "Mirza, Diana"]
[Black "Arushi Kotwal"]
[Result "1/2-1/2"]
[ECO "A48"]
[WhiteElo "1986"]
[BlackElo "1657"]
[Annotator "NA"]
[PlyCount "74"]
[EventDate "2019.10.15"]
[EventType "swiss"]
[EventCountry "IND"]
[SourceTitle "playchess.com"]
[Source "ChessBase"]
[SourceQuality "1"]
[TimeControl "40/5400+30:1800+30"]

1. d4 {[%emt 0:00:00]} Nf6 {[%emt 0:00:00]} 2. Nf3 {[%emt 0:00:00]} g6 {[%emt 0:00:00]} 3. Nbd2 {[%emt 0:00:00]} d5 {[%emt 0:00:00]} 4. b4 {[%emt 0:00:00]} Bg7 {[%emt 0:00:22]} 5. e3 {[%emt 0:00:05]} c6 {[%emt 0:00:29]} (5... a5 6. b5 c5 7. bxc6 Nxc6 8. Be2 O-O 9. O-O Bf5 10. c3 Qc7 11. a4 e5 12. Ba3 Rfc8 13. Rc1 {½-½ (25) Aronian,L (2765)-Vachier Lagrave,M (2778) Saint Louis 2019}) 6. c4 {[%emt 0:00:42] D02: 1 d4 d5 2 Nf3 sidelines, including 2...Nf6 3 g3 and 2...Nf6 3 Bf4} O-O {[%emt 0:01:12]} 7. a4 {[%emt 0:04:49]} Nbd7 {[%emt 0:04:55]} 8. Bd3 $146 {[%emt 0:02:56]} ({Predecessor:} 8. Bb2 Re8 9. Be2 e5 10. Nxe5 Nxe5 11. dxe5 Nd7 12. f4 f6 13. cxd5 fxe5 14. dxc6 bxc6 {1-0 (38) Hrabusa,M (2335)-Frolov,A (2399) Prague 2017}) 8... a5 {[%emt 0:04:25]} 9. b5 {[%emt 0:00:28]} c5 {[%emt 0:02:31]} 10. Bb2 {[%emt 0:01:54]} cxd4 {[%emt 0:01:00]} 11. Bxd4 {[%emt 0:00:42]} Re8 {[%emt 0:01:58]} 12. cxd5 {[%emt 0:04:41]} Nxd5 {[%emt 0:00:14]} 13. Bxg7 {[%emt 0:00:06]} Kxg7 {[%emt 0:00:06]} 14. Bc4 {[%emt 0:07:50]} N7b6 {[%emt 0:04:13]} 15. Bb3 {[%emt 0:01:45]} Nb4 {[%emt 0:02:04]} 16. O-O {[%emt 0:01:13]} Bg4 {[%emt 0:01:53]} 17. Qb1 {[%emt 0:17:53]} Bxf3 {[%emt 0:04:02]} 18. Nxf3 {[%emt 0:00:07]} e6 {[%emt 0:02:19]} 19. Qe4 {[%emt 0:03:34]} Qd3 {[%emt 0:03:00]} 20. Qe5+ {[%emt 0:03:20]} Kg8 {[%emt 0:03:50]} 21. Nd4 {[%emt 0:00:53]} Nc4 $14 {[%emt 0:34:07]} 22. Qg5 {[%emt 0:22:51]} e5 {[%emt 0:15:29]} 23. Rfd1 {[%emt 0:00:56]} Nd2 {[%emt 0:01:25]} 24. Qf6 {[%emt 0:03:17]} Nxb3 {[%emt 0:02:08]} 25. Rxd3 {[%emt 0:00:19]} Nxa1 {[%emt 0:00:25]} 26. Rd1 {[%emt 0:04:48]} exd4 {[%emt 0:00:06]} 27. Rxa1 {[%emt 0:00:06]} d3 {[%emt 0:00:48]} 28. Rd1 {[%emt 0:02:23]} Re6 {[%emt 0:02:34]} 29. Qc3 {[%emt 0:01:08]} b6 {[%emt 0:00:36]} 30. h4 {[%emt 0:02:58]} h5 {[%emt 0:00:14]} 31. g3 {[%emt 0:02:16]} Rd8 {[%emt 0:01:20]} 32. Kg2 {[%emt 0:01:58]} Rd5 {[%emt 0:00:42]} 33. Qc8+ {[%emt 0:02:47]} Kg7 {[%emt 0:00:12]} 34. Qc3+ {[%emt 0:00:04]} Kg8 {[%emt 0:00:19]} 35. Qc8+ {[%emt 0:00:15]} Kg7 {[%emt 0:00:43]} 36. Qc3+ {[%emt 0:00:11]} Kf8 {[%emt 0:02:06]} 37. Qc8+ {[%emt 0:02:36]} Kg7 {[%emt 0:01:54]} 1/2-1/2